fUST/lending_fUST_20250508
["ID","MTS","AMOUNT","RATE_DAILY","PERIOD"]
[360280300,1746695432504,-500.0,0.00010855,2]
[360280301,1746695432513,-500.0,0.00010855,2]
[360280302,1746695432524,-500.0,0.00010855,2]
[360280303,1746695432533,-500.0,0.00010855,2]
[360280304,1746695432543,-500.0,0.00010855,2]
[360280305,1746695432552,-500.0,0.00010855,2]
[360280306,1746695432561,-500.0,0.00010855,2]
[360280307,1746695432571,-247.3908533,0.00010855,2]
[360280308,1746695432582,-246.03086443,0.00010855,2]
[360280309,1746695432592,-500.0,0.00010855,2]
[360280310,1746695432601,-225.94421436,0.00010855,2]
[360280311,1746695432614,-20.08665006,0.00010855,2]
[360280312,1746695432623,-254.11662584,0.00010855,2]
[360280313,1746695432632,-600.94307359,0.00010855,2]
[360280314,1746695432642,-177.88163808,0.00010855,2]
[360280315,1746695432652,-500.0,0.00010855,2]
[360280316,1746695432661,-500.0,0.00010855,2]
[360280317,1746695432671,-500.0,0.00010855,2]
[360280318,1746695432680,-500.0,0.00010855,2]
[360280319,1746695432690,-500.0,0.00010855,2]
[360280320,1746695432699,-65333.75373195,0.00010856,2]
[360280321,1746695432708,-714.09240866,0.00010857,2]
[360280322,1746695432719,-400.0,0.00010958,2]
[360280323,1746695432729,-548.80355072,0.00010958,2]
[360280324,1746695432739,-534.40941132,0.00010958,2]
[360280325,1746695432748,-409.45897636,0.00010958,2]
[360280326,1746695432758,-400.0,0.00010958,2]
[360280327,1746695432771,-688.68,0.00010958,2]
[360280328,1746695432782,-418.62991352,0.00010958,2]
[360280329,1746695432792,-400.0,0.00010958,2]
[360280330,1746695432803,-400.0,0.00010958,2]
[360280331,1746695432816,-400.0,0.00010958,2]
[360280332,1746695432826,-443.98,0.00010958,2]
[360280333,1746695432837,-400.0,0.00010958,2]
[360280334,1746695432848,-400.0,0.00010958,2]
[360280335,1746695432857,-484.58,0.00010958,2]
[360280336,1746695432867,-400.0,0.00010958,2]
[360280337,1746695432876,-400.0,0.00010958,2]
[360280338,1746695432886,-400.0,0.00010958,2]
[360280339,1746695432895,-400.0,0.00010958,2]
[360280340,1746695432906,-1170.58445876,0.00010958,2]
[360280341,1746695432918,-737.07068129,0.00010958,2]
[360280345,1746695438174,-216.35485995,0.00010958,2]
[360280346,1746695438183,-400.0,0.00010958,2]
[360280347,1746695438193,-426.17,0.00010958,2]
[360280348,1746695438203,-400.0,0.00010958,2]
[360280350,1746695438213,-547.91,0.00010958,2]
[360280352,1746695438223,-400.0,0.00010958,2]
[360280354,1746695438232,-400.0,0.00010958,2]
[360280355,1746695438241,-400.0,0.00010958,2]
[360280356,1746695438250,-400.0,0.00010958,2]
[360280358,1746695438260,-400.0,0.00010958,2]
[360280360,1746695438270,-400.0,0.00010958,2]
[360280362,1746695438280,-400.0,0.00010958,2]
[360280364,1746695438289,-400.0,0.00010958,2]
[360280366,1746695438299,-400.0,0.00010958,2]
[360280368,1746695438308,-400.0,0.00010958,2]
[360280370,1746695438318,-400.0,0.00010958,2]
[360280372,1746695438328,-824.18,0.00010958,2]
[360280374,1746695438338,-400.0,0.00010958,2]
[360280375,1746695438347,-509.03,0.00010958,2]
[360280377,1746695438356,-286.35514005,0.00010958,2]
[360280378,1746695438372,-455.90485995,0.00010958,2]
[360280379,1746695438382,-400.0,0.00010958,2]
[360280380,1746695438391,-400.0,0.00010958,2]
[360280381,1746695438400,-400.0,0.00010958,2]
[360280382,1746695438409,-455.13,0.00010958,2]
[360280383,1746695438419,-400.0,0.00010958,2]
[360280384,1746695438428,-400.0,0.00010958,2]
[360280385,1746695438437,-400.0,0.00010958,2]
[360280386,1746695438447,-629.92,0.00010958,2]
[360280387,1746695438457,-2138.42,0.00010958,2]
[360280388,1746695438466,-400.0,0.00010958,2]
[360280389,1746695438475,-540.35,0.00010958,2]
[360280390,1746695438483,-864.88,0.00010958,2]
[360280391,1746695438493,-400.0,0.00010958,2]
[360280392,1746695438504,-703.35,0.00010958,2]
[360280393,1746695438514,-400.0,0.00010958,2]
[360280394,1746695438524,-400.0,0.00010958,2]
[360280395,1746695438536,-1357.55,0.00010958,2]
[360280396,1746695438545,-400.0,0.00010958,2]
[360280397,1746695438556,-726.54,0.00010958,2]
[360280398,1746695438566,-400.0,0.00010958,2]
[360280399,1746695438577,-679.62,0.00010958,2]
[360280400,1746695438589,-400.0,0.00010958,2]
[360280401,1746695438598,-539.56,0.00010958,2]
[360280402,1746695438608,-400.0,0.00010958,2]
[360280403,1746695438617,-400.0,0.00010958,2]
[360280404,1746695438629,-400.0,0.00010958,2]
[360280405,1746695438639,-448.42,0.00010958,2]
[360280406,1746695438648,-400.0,0.00010958,2]
[360280407,1746695438657,-934.54,0.00010958,2]
[360280408,1746695438667,-400.0,0.00010958,2]
[360280409,1746695438676,-306.74548039,0.00010958,2]
[360280424,1746695441131,-193.94451961,0.00010958,2]
[360280425,1746695441140,-182.23268046,0.00010958,2]
[360280426,1746695441150,-396.61693616,0.00010958,2]
[360280435,1746695443399,-3.38306384,0.00010958,2]
[360280436,1746695443409,-740.64,0.00010958,2]
[360280437,1746695443419,-400.0,0.00010958,2]
[360280439,1746695443428,-400.0,0.00010958,2]
[360280440,1746695443437,-400.0,0.00010958,2]
[360280441,1746695443447,-557.08,0.00010958,2]
[360280442,1746695443456,-400.0,0.00010958,2]
[360280443,1746695443466,-400.0,0.00010958,2]
[360280445,1746695443476,-175.91685259,0.00010958,2]
[360280447,1746695443486,-400.0,0.00010958,2]
[360280448,1746695443495,-400.0,0.00010958,2]
[360280449,1746695443505,-615.67,0.00010958,2]
[360280450,1746695443515,-400.0,0.00010958,2]
[360280451,1746695443523,-1416.41,0.00010958,2]
[360280452,1746695443533,-400.0,0.00010958,2]
[360280453,1746695443542,-1236.61,0.00010958,2]
[360280454,1746695443551,-171.94738582,0.00010958,2]
[360280455,1746695443560,-400.0,0.00010958,2]
[360280456,1746695443569,-400.0,0.00010958,2]
[360280457,1746695443579,-541.28,0.00010958,2]
[360280458,1746695443588,-559.51,0.00010958,2]
[360280459,1746695443597,-400.0,0.00010958,2]
[360280460,1746695443606,-400.0,0.00010958,2]
[360280461,1746695443615,-553.95,0.00010958,2]
[360280462,1746695443624,-400.0,0.00010958,2]
[360280463,1746695443634,-2008.32,0.00010958,2]
[360280464,1746695443642,-1033.24,0.00010958,2]
[360280465,1746695443651,-1004.83,0.00010958,2]
[360280466,1746695443660,-400.0,0.00010958,2]
[360280467,1746695443671,-659.98,0.00010958,2]
[360280468,1746695443682,-500.0,0.00010959,2]
[360280469,1746695443692,-500.0,0.00010959,2]
[360280470,1746695443703,-302.02145608,0.00010959,2]
[360280471,1746695443716,-968.89909377,0.00010963,2]
[360280472,1746695443730,-573.44836491,0.00011103,2]
[360280473,1746695443739,-968.89909377,0.00011169,2]
[360280474,1746695443749,-500.0,0.00011232,2]
[360280475,1746695443760,-500.0,0.00011232,2]
[360280476,1746695443770,-500.0,0.00011232,2]
[360280477,1746695443780,-400.0,0.00011232,2]
[360280478,1746695443790,-400.0,0.00011232,2]
[360280479,1746695443801,-400.0,0.00011232,2]
[360280480,1746695443812,-400.0,0.00011232,2]
[360280481,1746695443821,-400.0,0.00011232,2]
[360280482,1746695443831,-443.98,0.00011232,2]
[360280483,1746695443842,-400.0,0.00011232,2]
[360280484,1746695443853,-412.94224301,0.00011232,2]
[360280485,1746695443863,-484.58,0.00011232,2]
[360280486,1746695443874,-400.0,0.00011232,2]
[360280487,1746695443883,-400.0,0.00011232,2]
[360280488,1746695443894,-400.0,0.00011232,2]
[360280489,1746695443903,-400.0,0.00011232,2]
[360280490,1746695443913,-1839.65947571,0.00011232,2]
[360280491,1746695443926,-284.35052429,0.00011232,2]
[360280492,1746695443936,-215.64947571,0.00011232,2]
[360280493,1746695443948,-184.35052429,0.00011232,2]
[360280494,1746695443958,-426.17,0.00011232,2]
[360280495,1746695443968,-400.0,0.00011232,2]
[360280496,1746695443979,-547.91,0.00011232,2]
[360280497,1746695443988,-400.0,0.00011232,2]
[360280498,1746695443998,-400.0,0.00011232,2]
[360280499,1746695444007,-400.0,0.00011232,2]
[360280500,1746695444018,-400.0,0.00011232,2]
[360280501,1746695444033,-400.0,0.00011232,2]
[360280502,1746695444042,-400.0,0.00011232,2]
[360280503,1746695444052,-400.0,0.00011232,2]
[360280504,1746695444062,-400.0,0.00011232,2]
[360280505,1746695444071,-400.0,0.00011232,2]
[360280506,1746695444081,-400.0,0.00011232,2]
[360280507,1746695444090,-400.0,0.00011232,2]
[360280508,1746695444100,-824.18,0.00011232,2]
[360280509,1746695444109,-400.0,0.00011232,2]
[360280510,1746695444118,-509.03,0.00011232,2]
[360280511,1746695444127,-742.26,0.00011232,2]
[360280512,1746695444137,-400.0,0.00011232,2]
[360280513,1746695444146,-400.0,0.00011232,2]
[360280514,1746695444156,-455.13,0.00011232,2]
[360280515,1746695444166,-400.0,0.00011232,2]
[360280516,1746695444175,-400.0,0.00011232,2]
[360280517,1746695444185,-400.0,0.00011232,2]
[360280518,1746695444194,-629.92,0.00011232,2]
[360280519,1746695444204,-2138.42,0.00011232,2]
[360280520,1746695444213,-400.0,0.00011232,2]
[360280521,1746695444223,-540.35,0.00011232,2]
[360280522,1746695444232,-864.88,0.00011232,2]
[360280523,1746695444242,-400.0,0.00011232,2]
[360280524,1746695444251,-703.35,0.00011232,2]
[360280525,1746695444260,-400.0,0.00011232,2]
[360280526,1746695444269,-400.0,0.00011232,2]
[360280527,1746695444279,-1357.55,0.00011232,2]
[360280528,1746695444289,-400.0,0.00011232,2]
[360280529,1746695444298,-726.54,0.00011232,2]
[360280530,1746695444308,-400.0,0.00011232,2]
[360280531,1746695444318,-679.62,0.00011232,2]
[360280532,1746695444327,-400.0,0.00011232,2]
[360280533,1746695444336,-539.56,0.00011232,2]
[360280534,1746695444345,-400.0,0.00011232,2]
[360280535,1746695444355,-400.0,0.00011232,2]
[360280536,1746695444364,-400.0,0.00011232,2]
[360280537,1746695444376,-448.42,0.00011232,2]
[360280538,1746695444385,-400.0,0.00011232,2]
[360280539,1746695444395,-934.54,0.00011232,2]
[360280540,1746695444404,-400.0,0.00011232,2]
[360280541,1746695444414,-500.69,0.00011232,2]
[360280542,1746695444423,-400.0,0.00011232,2]
[360280543,1746695444432,-740.64,0.00011232,2]
[360280544,1746695444441,-400.0,0.00011232,2]
[360280545,1746695444450,-400.0,0.00011232,2]
[360280546,1746695444459,-400.0,0.00011232,2]
[360280547,1746695444469,-557.08,0.00011232,2]
[360280548,1746695444478,-400.0,0.00011232,2]
[360280549,1746695444487,-400.0,0.00011232,2]
[360280550,1746695444496,-400.0,0.00011232,2]
[360280551,1746695444507,-400.0,0.00011232,2]
[360280552,1746695444516,-615.67,0.00011232,2]
[360280553,1746695444526,-158.40422663,0.00011232,2]
[360280554,1746695444535,-1416.41,0.00011232,2]
[360280555,1746695444544,-400.0,0.00011232,2]
[360280556,1746695444553,-1236.61,0.00011232,2]
[360280557,1746695444561,-400.0,0.00011232,2]
[360280558,1746695444570,-400.0,0.00011232,2]
[360280559,1746695444579,-541.28,0.00011232,2]
[360280560,1746695444589,-559.51,0.00011232,2]
[360280561,1746695444598,-400.0,0.00011232,2]
[360280562,1746695444607,-400.0,0.00011232,2]
[360280563,1746695444616,-553.95,0.00011232,2]
[360280564,1746695444625,-400.0,0.00011232,2]
[360280565,1746695444634,-2008.32,0.00011232,2]
[360280566,1746695444643,-1033.24,0.00011232,2]
[360280567,1746695444652,-1004.83,0.00011232,2]
[360280568,1746695444662,-400.0,0.00011232,2]
[360280569,1746695444672,-659.98,0.00011232,2]
[360280570,1746695444682,-867.11155224,0.00011241,2]
[360280571,1746695444691,-968.89909377,0.00011374,2]
[360280572,1746695444701,-500.0,0.00011421,2]
[360280573,1746695444711,-500.0,0.00011421,2]
[360280574,1746695444724,-500.0,0.00011421,2]
[360280575,1746695444741,-500.0,0.00011421,2]
[360280576,1746695444750,-500.0,0.00011421,2]
[360280577,1746695444760,-500.0,0.00011421,2]
[360280578,1746695444769,-500.0,0.0001148,2]
[360280579,1746695444779,-500.0,0.0001148,2]
[360280580,1746695444789,-400.0,0.00011506,2]
[360280581,1746695444799,-400.0,0.00011506,2]
[360280582,1746695444809,-208.96604598,0.00011506,2]
[360280583,1746695444819,-400.0,0.00011506,2]
[360280584,1746695444828,-497.90968478,0.00011506,2]
[360280585,1746695444838,-443.98,0.00011506,2]
[360280586,1746695444848,-400.0,0.00011506,2]
[360280587,1746695444857,-484.58,0.00011506,2]
[360280588,1746695444868,-400.0,0.00011506,2]
[360280589,1746695444877,-400.0,0.00011506,2]
[360280590,1746695444886,-400.0,0.00011506,2]
[360280591,1746695444896,-400.0,0.00011506,2]
[360280592,1746695444905,-2124.01,0.00011506,2]
[360280593,1746695444915,-400.0,0.00011506,2]
[360280594,1746695444924,-426.17,0.00011506,2]
[360280595,1746695444933,-400.0,0.00011506,2]
[360280596,1746695444943,-547.91,0.00011506,2]
[360280597,1746695444952,-400.0,0.00011506,2]
[360280598,1746695444962,-400.0,0.00011506,2]
[360280599,1746695444971,-400.0,0.00011506,2]
[360280600,1746695444981,-400.0,0.00011506,2]
[360280601,1746695444991,-400.0,0.00011506,2]
[360280602,1746695445001,-400.0,0.00011506,2]
[360280603,1746695445012,-400.0,0.00011506,2]
[360280604,1746695445024,-400.0,0.00011506,2]
[360280605,1746695445033,-400.0,0.00011506,2]
[360280606,1746695445043,-400.0,0.00011506,2]
[360280607,1746695445053,-400.0,0.00011506,2]
[360280608,1746695445063,-824.18,0.00011506,2]
[360280609,1746695445073,-400.0,0.00011506,2]
[360280610,1746695445083,-509.03,0.00011506,2]
[360280611,1746695445092,-742.26,0.00011506,2]
[360280612,1746695445102,-400.0,0.00011506,2]
[360280613,1746695445112,-400.0,0.00011506,2]
[360280614,1746695445121,-455.13,0.00011506,2]
[360280615,1746695445131,-400.0,0.00011506,2]
[360280616,1746695445140,-400.0,0.00011506,2]
[360280617,1746695445149,-400.0,0.00011506,2]
[360280618,1746695445159,-629.92,0.00011506,2]
[360280619,1746695445168,-2138.42,0.00011506,2]
[360280620,1746695445178,-400.0,0.00011506,2]
[360280621,1746695445187,-540.35,0.00011506,2]
[360280622,1746695445196,-864.88,0.00011506,2]
[360280623,1746695445205,-400.0,0.00011506,2]
[360280624,1746695445214,-703.35,0.00011506,2]
[360280625,1746695445223,-400.0,0.00011506,2]
[360280626,1746695445232,-400.0,0.00011506,2]
[360280627,1746695445242,-1357.55,0.00011506,2]
[360280628,1746695445251,-400.0,0.00011506,2]
[360280629,1746695445262,-726.54,0.00011506,2]
[360280630,1746695445271,-400.0,0.00011506,2]
[360280631,1746695445281,-679.62,0.00011506,2]
[360280632,1746695445291,-400.0,0.00011506,2]
[360280633,1746695445302,-539.56,0.00011506,2]
[360280634,1746695445313,-400.0,0.00011506,2]
[360280635,1746695445324,-400.0,0.00011506,2]
[360280636,1746695445335,-400.0,0.00011506,2]
[360280637,1746695445345,-448.42,0.00011506,2]
[360280638,1746695445354,-400.0,0.00011506,2]
[360280639,1746695445363,-934.54,0.00011506,2]
[360280640,1746695445372,-400.0,0.00011506,2]
[360280641,1746695445381,-500.69,0.00011506,2]
[360280642,1746695445390,-425.10422675,0.00011506,2]
[360280643,1746695445399,-740.64,0.00011506,2]
[360280644,1746695445408,-400.0,0.00011506,2]
[360280645,1746695445417,-400.0,0.00011506,2]
[360280646,1746695445426,-400.0,0.00011506,2]
[360280647,1746695445436,-557.08,0.00011506,2]
[360280648,1746695445448,-400.0,0.00011506,2]
[360280649,1746695445457,-400.0,0.00011506,2]
[360280650,1746695445467,-400.0,0.00011506,2]
[360280651,1746695445476,-400.0,0.00011506,2]
[360280652,1746695445485,-615.67,0.00011506,2]
[360280653,1746695445495,-1416.41,0.00011506,2]
[360280654,1746695445504,-400.0,0.00011506,2]
[360280655,1746695445514,-1236.61,0.00011506,2]
[360280656,1746695445526,-400.0,0.00011506,2]
[360280657,1746695445536,-400.0,0.00011506,2]
[360280658,1746695445545,-541.28,0.00011506,2]
[360280659,1746695445557,-559.51,0.00011506,2]
[360280660,1746695445567,-400.0,0.00011506,2]
[360280661,1746695445578,-400.0,0.00011506,2]
[360280662,1746695445589,-553.95,0.00011506,2]
[360280663,1746695445599,-400.0,0.00011506,2]
[360280664,1746695445609,-2008.32,0.00011506,2]
[360280665,1746695445621,-1033.24,0.00011506,2]
[360280666,1746695445631,-1004.83,0.00011506,2]
[360280667,1746695445641,-400.0,0.00011506,2]
[360280668,1746695445651,-659.98,0.00011506,2]
[360280669,1746695445660,-500.0,0.00011529,2]
[360280670,1746695445671,-500.0,0.00011529,2]
[360280671,1746695445684,-500.0,0.00011529,2]
[360280672,1746695445694,-500.0,0.00011529,2]
[360280673,1746695445703,-968.89909377,0.0001158,2]
[360280674,1746695445713,-500.98319267,0.00011637,2]
[360280675,1746695445727,-500.0,0.00011637,2]
[360280676,1746695445737,-500.0,0.00011637,2]
[360280677,1746695445748,-500.0,0.00011637,2]
[360280678,1746695445759,-500.0,0.00011647,2]
[360280679,1746695445771,-263.61989077,0.00011647,2]
[360280680,1746695445781,-503.56528475,0.00011647,2]
[360280681,1746695445790,-500.0,0.00011647,2]
[360280682,1746695445802,-500.0,0.00011647,2]
[360280683,1746695445813,-500.0,0.00011647,2]
[360280684,1746695445823,-2716.4,0.0001168,2]
[360280685,1746695445834,-2716.4,0.0001168,2]
[360280686,1746695445846,-2716.4,0.0001168,2]
[360280687,1746695445857,-2716.4,0.0001168,2]
[360280688,1746695445868,-2716.4,0.0001168,2]
[360280689,1746695445879,-2716.4,0.0001168,2]
[360280690,1746695445889,-2716.4,0.0001168,2]
[360280691,1746695445899,-2716.4,0.0001168,2]
[360280692,1746695445909,-2716.4,0.0001168,2]
[360280693,1746695445919,-2716.4,0.0001168,2]
[360280694,1746695445929,-2716.4,0.0001168,2]
[360280695,1746695445938,-2716.4,0.0001168,2]
[360280696,1746695445948,-879.59288606,0.0001168,2]
[360280699,1746695446117,-1836.80711394,0.0001168,2]
[360280700,1746695446127,-2716.4,0.0001168,2]
[360280701,1746695446137,-2716.4,0.0001168,2]
[360280702,1746695446147,-2716.4,0.0001168,2]
[360280703,1746695446157,-500.0,0.000117,2]
[360280704,1746695446167,-500.0,0.000117,2]
[360280705,1746695446177,-500.0,0.000117,2]
[360280706,1746695446187,-500.0,0.000117,2]
[360280707,1746695446196,-500.0,0.000117,2]
[360280708,1746695446206,-500.0,0.000117,2]
[360280709,1746695446216,-500.0,0.000117,2]
[360280710,1746695446226,-500.0,0.000117,2]
[360280711,1746695446236,-500.0,0.000117,2]
[360280712,1746695446245,-500.0,0.000117,2]
[360280713,1746695446256,-500.0,0.000117,2]
[360280714,1746695446267,-400.0,0.0001178,2]
[360280715,1746695446277,-400.0,0.0001178,2]
[360280716,1746695446287,-400.0,0.0001178,2]
[360280717,1746695446296,-443.98,0.0001178,2]
[360280718,1746695446306,-400.0,0.0001178,2]
[360280719,1746695446317,-484.58,0.0001178,2]
[360280720,1746695446329,-400.0,0.0001178,2]
[360280721,1746695446340,-400.0,0.0001178,2]
[360280722,1746695446350,-400.0,0.0001178,2]
[360280723,1746695446360,-400.0,0.0001178,2]
[360280724,1746695446371,-1160.72344208,0.0001178,2]
[360280737,1746695571123,5521.1730765,9.856e-05,2]
[360280738,1746695589948,351.0,0.00023,120]
[360280744,1746695679179,9338.7420121,0.0001007,2]
[360280753,1746696003235,11649.06800281,0.0001,2]
[360280754,1746696043895,260.0,0.00023,120]
[360280770,1746696221256,519.84,8.1e-05,14]
[360280771,1746696221587,519.84,8.2e-05,14]
[360280772,1746696221940,519.84,8.3e-05,14]
[360280773,1746696222266,519.84,8.4e-05,14]
[360280774,1746696222616,519.84,8.5e-05,14]
[360280775,1746696222948,519.84,8.6e-05,14]
[360280776,1746696223271,519.84,8.6e-05,14]
[360280777,1746696223714,519.84,8.7e-05,14]
[360280778,1746696224008,519.88,8.8e-05,14]
[360280780,1746696244225,150.0,0.00019,120]
[360280792,1746696390752,200.0,0.00022645,120]
[360280793,1746696396576,723.473,0.00023,120]
[360280803,1746696513503,279.76708825,0.0001,2]
[360280807,1746696525554,3082.35871859,0.0002,120]
[360280823,1746696632293,-163.59994443,0.00010556,2]
[360280824,1746696632306,-877.15897032,0.00010655,2]
[360280825,1746696632320,-15754.84102968,0.00010655,2]
[360280826,1746696632332,-1200.0,0.00010655,2]
[360280827,1746696632342,-300.0,0.00010656,2]
[360280828,1746696632351,-300.0,0.00010656,2]
[360280829,1746696632361,-300.0,0.00010656,2]
[360280830,1746696632371,-277.0,0.00010656,2]
[360280831,1746696632381,-300.0,0.00010656,2]
[360280832,1746696632391,-1128.08576489,0.00010657,2]
[360280834,1746696632402,-3775.6611822,0.00010657,2]
[360280836,1746696632411,-200.0,0.00010852,2]
[360280838,1746696632421,-163.59994443,0.00010858,2]
[360280839,1746696632431,-1000.0,0.00010858,2]
[360280841,1746696632441,-470.7153703,0.00010957,2]
[360280842,1746696632451,-500.0,0.00010957,2]
[360280843,1746696632460,-500.0,0.00010957,2]
[360280844,1746696632469,-500.0,0.00010957,2]
[360280845,1746696632478,-500.0,0.00010957,2]
[360280846,1746696632726,-500.0,0.00010957,2]
[360280847,1746696632747,-128.86891479,0.00010957,2]
[360280848,1746696632763,-371.13108521,0.00010957,2]
[360280849,1746696632772,-500.0,0.00010957,2]
[360280850,1746696632783,-635.12366329,0.00010957,2]
[360280851,1746696632794,-500.0,0.00010957,2]
[360280852,1746696632803,-500.0,0.00010957,2]
[360280853,1746696632813,-400.0,0.00010958,2]
[360280854,1746696632823,-473.62,0.00010958,2]
[360280855,1746696632834,-400.0,0.00010958,2]
[360280856,1746696632843,-577.48,0.00010958,2]
[360280857,1746696632852,-354.17009197,0.00010958,2]
[360280858,1746696632863,-833.53,0.00010958,2]
[360280859,1746696632874,-400.0,0.00010958,2]
[360280860,1746696632883,-400.0,0.00010958,2]
[360280861,1746696632892,-400.0,0.00010958,2]
[360280862,1746696632902,-400.0,0.00010958,2]
[360280863,1746696632912,-400.0,0.00010958,2]
[360280864,1746696632923,-403.82,0.00010958,2]
[360280865,1746696632934,-400.0,0.00010958,2]
[360280866,1746696632945,-1433.03,0.00010958,2]
[360280867,1746696632955,-864.11,0.00010958,2]
[360280868,1746696632966,-400.0,0.00010958,2]
[360280869,1746696632977,-400.0,0.00010958,2]
[360280870,1746696632987,-400.0,0.00010958,2]
[360280871,1746696632998,-479.43,0.00010958,2]
[360280872,1746696633008,-400.0,0.00010958,2]
[360280873,1746696633017,-400.0,0.00010958,2]
[360280874,1746696633027,-300.37015612,0.00010958,2]
[360280875,1746696633036,-400.0,0.00010958,2]
[360280876,1746696633045,-400.0,0.00010958,2]
[360280877,1746696633055,-400.0,0.00010958,2]
[360280878,1746696633064,-400.0,0.00010958,2]
[360280879,1746696633074,-400.0,0.00010958,2]
[360280880,1746696633083,-400.0,0.00010958,2]
[360280881,1746696633093,-400.0,0.00010958,2]
[360280882,1746696633103,-467.54,0.00010958,2]
[360280883,1746696633114,-400.0,0.00010958,2]
[360280884,1746696633124,-167.45025099,0.00010958,2]
[360280885,1746696633133,-400.0,0.00010958,2]
[360280886,1746696633143,-295.12314518,0.00010958,2]
[360280887,1746696633153,-879.23,0.00010958,2]
[360280888,1746696633163,-400.0,0.00010958,2]
[360280889,1746696633172,-400.0,0.00010958,2]
[360280890,1746696633182,-721.15,0.00010958,2]
[360280891,1746696633192,-400.0,0.00010958,2]
[360280892,1746696633202,-400.0,0.00010958,2]
[360280893,1746696633211,-400.0,0.00010958,2]
[360280894,1746696633221,-400.0,0.00010958,2]
[360280895,1746696633230,-400.0,0.00010958,2]
[360280896,1746696633240,-472.81,0.00010958,2]
[360280897,1746696633249,-904.08,0.00010958,2]
[360280898,1746696633260,-400.0,0.00010958,2]
[360280899,1746696633270,-400.0,0.00010958,2]
[360280900,1746696633280,-551.18,0.00010958,2]
[360280901,1746696633290,-400.0,0.00010958,2]
[360280902,1746696633300,-649.47,0.00010958,2]
[360280903,1746696633309,-400.0,0.00010958,2]
[360280904,1746696633319,-594.67,0.00010958,2]
[360280905,1746696633331,-400.0,0.00010958,2]
[360280906,1746696633340,-400.0,0.00010958,2]
[360280907,1746696633350,-615.44,0.00010958,2]
[360280908,1746696633359,-400.0,0.00010958,2]
[360280909,1746696633368,-400.0,0.00010958,2]
[360280910,1746696633378,-1187.85,0.00010958,2]
[360280911,1746696633387,-82.66238662,0.00010958,2]
[360280912,1746696633400,-1674.61761338,0.00010958,2]
[360280913,1746696633410,-438.11,0.00010958,2]
[360280914,1746696633420,-635.72,0.00010958,2]
[360280915,1746696633429,-400.0,0.00010958,2]
[360280916,1746696633439,-400.0,0.00010958,2]
[360280917,1746696633448,-472.11,0.00010958,2]
[360280918,1746696633458,-400.0,0.00010958,2]
[360280919,1746696633468,-817.72,0.00010958,2]
[360280920,1746696633477,-400.0,0.00010958,2]
[360280921,1746696633487,-648.06,0.00010958,2]
[360280922,1746696633496,-400.0,0.00010958,2]
[360280923,1746696633505,-1871.12,0.00010958,2]
[360280924,1746696633515,-400.0,0.00010958,2]
[360280925,1746696633524,-400.0,0.00010958,2]